fUSD/lending_fUSD_20240628
["ID","MTS","AMOUNT","RATE_DAILY","PERIOD"]
[330575193,1719581510041,-727.75,0.00022082,3]
[330575194,1719581510051,-684.37,0.00022082,3]
[330575195,1719581510060,-500.0,0.00022082,3]
[330575196,1719581510070,-527.84,0.00022082,3]
[330575197,1719581510081,-1216.62,0.00022082,3]
[330575198,1719581510091,-760.87,0.00022082,3]
[330575199,1719581510100,-500.0,0.00022082,3]
[330575200,1719581510110,-792.38,0.00022082,3]
[330575201,1719581510119,-1797.28,0.00022082,3]
[330575202,1719581510129,-500.0,0.00022082,3]
[330575203,1719581510138,-541.45,0.00022082,3]
[330575204,1719581510148,-500.0,0.00022082,3]
[330575205,1719581510157,-500.0,0.00022082,3]
[330575206,1719581510166,-6246.5,0.00022082,3]
[330575207,1719581510176,-500.0,0.00022082,3]
[330575208,1719581510185,-500.0,0.00022082,3]
[330575209,1719581510194,-500.0,0.00022082,3]
[330575210,1719581510203,-1194.1,0.00022082,3]
[330575211,1719581510212,-949.96,0.00022082,3]
[330575212,1719581510222,-2742.28,0.00022082,3]
[330575213,1719581510231,-399.32598843,0.00022082,3]
[330575214,1719581510240,-5615.75,0.00022082,3]
[330575215,1719581510250,-2195.07,0.00022082,3]
[330575216,1719581510259,-4369.89,0.00022082,3]
[330575217,1719581510267,-500.0,0.00022082,3]
[330575218,1719581510277,-2088.38,0.00022082,3]
[330575219,1719581510286,-500.0,0.00022082,3]
[330575220,1719581510295,-1879.2,0.00022082,3]
[330575221,1719581510304,-3608.45,0.00022082,3]
[330575222,1719581510313,-500.0,0.00022082,3]
[330575223,1719581510324,-500.0,0.00022082,3]
[330575224,1719581510333,-1432.87,0.00022082,3]
[330575225,1719581510342,-832.85,0.00022082,3]
[330575226,1719581510352,-5733.59,0.00022082,3]
[330575227,1719581510361,-1129.35,0.00022082,3]
[330575228,1719581510370,-500.0,0.00022082,3]
[330575229,1719581510380,-1436.46,0.00022082,3]
[330575230,1719581510390,-1538.17,0.00022082,3]
[330575231,1719581510400,-1292.24,0.00022082,3]
[330575232,1719581510410,-4106.02,0.00022082,3]
[330575233,1719581510423,-1438.55,0.00022082,3]
[330575234,1719581510434,-500.0,0.00022082,3]
[330575235,1719581510444,-568.61022271,0.00022082,3]
[330575236,1719581510454,-3578.49,0.00022082,3]
[330575237,1719581510465,-500.0,0.00022082,3]
[330575238,1719581510475,-500.0,0.00022082,3]
[330575239,1719581510484,-500.0,0.00022082,3]
[330575240,1719581510494,-2567.92,0.00022082,3]
[330575241,1719581510505,-936.48,0.00022082,3]
[330575242,1719581510515,-2949.05,0.00022082,3]
[330575243,1719581510525,-602.03,0.00022082,3]
[330575244,1719581510535,-500.0,0.00022082,3]
[330575245,1719581510545,-1391.57,0.00022082,3]
[330575246,1719581510555,-591.18250935,0.00022082,3]
[330575247,1719581510565,-500.0,0.00022082,3]
[330575248,1719581510575,-500.0,0.00022082,3]
[330575249,1719581510584,-6037.16,0.00022082,3]
[330575250,1719581510594,-521.65,0.00022082,3]
[330575251,1719581510603,-1345.72,0.00022082,3]
[330575252,1719581510613,-1172.73,0.00022082,3]
[330575253,1719581510623,-3090.23,0.00022082,3]
[330575254,1719581510633,-653.49,0.00022082,3]
[330575255,1719581510643,-518.74,0.00022082,3]
[330575256,1719581510652,-500.0,0.00022082,3]
[330575257,1719581510663,-2152.58,0.00022082,3]
[330575258,1719581510673,-1191.41,0.00022082,3]
[330575259,1719581510683,-2094.28,0.00022082,3]
[330575260,1719581510692,-500.0,0.00022082,3]
[330575261,1719581510702,-899.61,0.00022082,3]
[330575262,1719581510713,-500.0,0.00022082,3]
[330575263,1719581510723,-7086.03,0.00022082,3]
[330575264,1719581510733,-803.71,0.00022082,3]
[330575265,1719581510743,-2168.12,0.00022082,3]
[330575266,1719581511127,-500.0,0.00022082,3]
[330575267,1719581511143,-4219.59,0.00022082,3]
[330575268,1719581511153,-10699.08,0.00022082,3]
[330575269,1719581511164,-500.0,0.00022082,3]
[330575270,1719581511174,-1834.2,0.00022082,3]
[330575271,1719581511183,-4714.4,0.00022082,3]
[330575272,1719581511193,-1504.71,0.00022082,3]
[330575273,1719581511202,-1919.85,0.00022082,3]
[330575274,1719581511212,-1158.28,0.00022082,3]
[330575275,1719581511222,-1215.12,0.00022082,3]
[330575276,1719581511232,-500.0,0.00022082,3]
[330575277,1719581511241,-500.0,0.00022082,3]
[330575278,1719581511251,-4704.3,0.00022082,3]
[330575279,1719581511260,-500.0,0.00022082,3]
[330575280,1719581511270,-2086.55,0.00022082,3]
[330575281,1719581511279,-500.0,0.00022082,3]
[330575282,1719581511289,-2978.02,0.00022082,3]
[330575283,1719581511299,-500.0,0.00022082,3]
[330575284,1719581511309,-2920.68,0.00022082,3]
[330575285,1719581511319,-1218.92,0.00022082,3]
[330575286,1719581511331,-647.51,0.00022082,3]
[330575287,1719581511340,-922.33,0.00022082,3]
[330575288,1719581511350,-662.35,0.00022082,3]
[330575289,1719581511360,-500.0,0.00022082,3]
[330575290,1719581511370,-642.07,0.00022082,3]
[330575291,1719581511379,-1519.66,0.00022082,3]
[330575292,1719581511389,-914.28,0.00022082,3]
[330575293,1719581511399,-1264.93,0.00022082,3]
[330575294,1719581511408,-236.62830052,0.00022082,3]
[330575295,1719581511421,-2983.21,0.00022082,3]
[330575296,1719581511432,-1929.5,0.00022082,3]
[330575297,1719581511441,-1030.03,0.00022082,3]
[330575298,1719581511451,-2178.19,0.00022082,3]
[330575299,1719581511461,-5319.8,0.00022082,3]
[330575300,1719581511471,-4628.83,0.00022082,3]
[330575301,1719581511481,-500.0,0.00022082,3]
[330575302,1719581511492,-500.0,0.00022082,3]
[330575303,1719581511502,-500.0,0.00022082,3]
[330575304,1719581511513,-500.0,0.00022082,3]
[330575305,1719581511522,-93892.23,0.00022082,3]
[330575306,1719581511532,-4310.82,0.00022082,3]
[330575307,1719581511541,-500.0,0.00022082,3]
[330575308,1719581511552,-566.22,0.00022082,3]
[330575309,1719581511561,-1460.26,0.00022082,3]
[330575310,1719581511571,-1849.37,0.00022082,3]
[330575311,1719581511583,-500.0,0.00022082,2]
[330575312,1719581511593,-500.0,0.00022082,3]
[330575313,1719581511602,-251.11,0.00022082,7]
[330575314,1719581511612,-500.0,0.00022082,3]
[330575315,1719581511622,-16414.95,0.00022082,3]
[330575316,1719581511631,-2405.17,0.00022082,3]
[330575317,1719581511641,-583.96,0.00022082,3]
[330575318,1719581511651,-500.0,0.00022082,3]
[330575319,1719581511661,-500.0,0.00022082,3]
[330575320,1719581511671,-1544.52,0.00022082,3]
[330575321,1719581511680,-500.0,0.00022082,3]
[330575322,1719581511689,-500.0,0.00022082,3]
[330575323,1719581511699,-1841.1,0.00022082,3]
[330575324,1719581511709,-808.69,0.00022082,3]
[330575325,1719581511718,-500.0,0.00022082,3]
[330575326,1719581511727,-500.0,0.00022082,3]
[330575327,1719581511736,-559.42,0.00022082,3]
[330575328,1719581511746,-785.91,0.00022082,3]
[330575329,1719581511755,-500.0,0.00022082,3]
[330575330,1719581511764,-538.09,0.00022082,3]
[330575331,1719581511774,-4945.54,0.00022082,3]
[330575332,1719581511783,-3690.59,0.00022082,3]
[330575333,1719581511792,-500.0,0.00022082,3]
[330575334,1719581511802,-500.0,0.00022082,3]
[330575335,1719581511812,-500.0,0.00022082,3]
[330575336,1719581511823,-898.52,0.00022082,3]
[330575337,1719581511835,-5027.37,0.00022082,3]
[330575338,1719581511844,-1763.07,0.00022082,3]
[330575339,1719581511854,-1768.49,0.00022082,3]
[330575340,1719581511869,-1375.73,0.00022082,3]
[330575341,1719581511879,-500.0,0.00022082,3]
[330575342,1719581511889,-189.27037215,0.00022082,3]
[330575343,1719581511900,-500.0,0.00022082,3]
[330575344,1719581511910,-1778.25,0.00022082,3]
[330575345,1719581511921,-368.20177115,0.00022082,3]
[330575346,1719581511931,-1290.1,0.00022082,3]
[330575347,1719581511940,-1517.24,0.00022082,3]
[330575348,1719581511951,-1434.18,0.00022082,3]
[330575349,1719581511961,-500.0,0.00022082,3]
[330575350,1719581511971,-1515.04,0.00022082,3]
[330575351,1719581511981,-2177.82,0.00022082,3]
[330575352,1719581511991,-3187.95,0.00022082,3]
[330575353,1719581512000,-7466.19,0.00022082,3]
[330575354,1719581512010,-4561.78,0.00022082,3]
[330575355,1719581512020,-500.0,0.00022082,3]
[330575356,1719581512029,-3661.99,0.00022082,3]
[330575357,1719581512039,-3137.19,0.00022082,3]
[330575358,1719581512049,-4498.55,0.00022082,3]
[330575359,1719581512058,-500.0,0.00022082,3]
[330575360,1719581512068,-500.0,0.00022082,3]
[330575361,1719581512082,-1040.61,0.00022082,3]
[330575362,1719581512092,-940.25,0.00022082,3]
[330575363,1719581512103,-500.0,0.00022082,3]
[330575364,1719581512114,-4233.18,0.00022082,3]
[330575365,1719581512123,-1668.83,0.00022082,3]
[330575366,1719581512133,-3429.88,0.00022082,3]
[330575367,1719581512143,-14158.63,0.00022082,3]
[330575368,1719581512152,-500.0,0.00022082,3]
[330575369,1719581512162,-500.0,0.00022082,3]
[330575370,1719581512171,-821.69,0.00022082,3]
[330575371,1719581512181,-500.0,0.00022082,3]
[330575372,1719581512190,-783.72,0.00022082,3]
[330575373,1719581512200,-740.83,0.00022082,3]
[330575374,1719581512210,-500.0,0.00022082,3]
[330575375,1719581512219,-565.45,0.00022082,3]
[330575376,1719581512230,-550.44,0.00022082,3]
[330575377,1719581512239,-500.0,0.00022082,3]
[330575378,1719581512249,-3011.43,0.00022082,3]
[330575379,1719581512258,-1631.5,0.00022082,3]
[330575380,1719581512268,-1552.89,0.00022082,3]
[330575381,1719581512277,-1656.5,0.00022082,3]
[330575382,1719581512287,-500.0,0.00022082,3]
[330575383,1719581512296,-500.0,0.00022082,3]
[330575384,1719581512306,-500.0,0.00022082,3]
[330575385,1719581512315,-4506.2,0.00022082,3]
[330575386,1719581512327,-500.0,0.00022082,3]
[330575387,1719581512337,-976.34,0.00022082,3]
[330575388,1719581512346,-946.94,0.00022082,3]
[330575389,1719581512356,-2381.26,0.00022082,3]
[330575390,1719581512365,-500.0,0.00022082,3]
[330575391,1719581512375,-500.0,0.00022082,3]
[330575392,1719581512385,-3301.29,0.00022082,3]
[330575393,1719581512395,-2746.28,0.00022082,3]
[330575394,1719581512404,-1223.71,0.00022082,3]
[330575395,1719581512415,-500.0,0.00022082,3]
[330575396,1719581512426,-1745.26,0.00022082,3]
[330575397,1719581512437,-500.0,0.00022082,3]
[330575398,1719581512447,-1350.21,0.00022082,3]
[330575399,1719581512458,-2747.84,0.00022082,3]
[330575400,1719581512468,-641.43,0.00022082,3]
[330575401,1719581512478,-815.04,0.00022082,3]
[330575402,1719581512487,-1038.84,0.00022082,3]
[330575403,1719581512496,-500.0,0.00022082,3]
[330575404,1719581512509,-712.23,0.00022082,3]
[330575405,1719581512519,-3467.53,0.00022082,3]
[330575406,1719581512528,-936.42,0.00022082,3]
[330575407,1719581512538,-1982.67,0.00022082,3]
[330575408,1719581512548,-500.0,0.00022082,3]
[330575409,1719581512557,-500.0,0.00022082,3]
[330575410,1719581512567,-5306.68,0.00022082,3]
[330575411,1719581512578,-1056.31,0.00022082,3]
[330575412,1719581512588,-3242.56,0.00022082,3]
[330575413,1719581512598,-500.0,0.00022082,3]
[330575414,1719581512607,-1048.43,0.00022082,3]
[330575415,1719581512617,-500.0,0.00022082,3]
[330575416,1719581512627,-1418.66,0.00022082,3]
[330575417,1719581512636,-4937.8,0.00022082,3]
[330575418,1719581512646,-1396.36,0.00022082,3]
[330575419,1719581512656,-500.0,0.00022082,3]
[330575420,1719581512666,-2756.0,0.00022082,3]
[330575421,1719581512675,-3657.11,0.00022082,3]
[330575422,1719581512685,-3297.67,0.00022082,3]
[330575423,1719581512695,-500.0,0.00022082,3]
[330575424,1719581512704,-3075.42,0.00022082,3]
[330575425,1719581512714,-500.0,0.00022082,3]
[330575426,1719581512723,-500.0,0.00022082,3]
[330575427,1719581512733,-3594.55,0.00022082,3]
[330575428,1719581512742,-1299.94,0.00022082,3]
[330575429,1719581512751,-500.0,0.00022082,3]
[330575430,1719581512761,-500.0,0.00022082,3]
[330575431,1719581512771,-5118.96,0.00022082,3]
[330575432,1719581512780,-500.0,0.00022082,3]
[330575433,1719581512789,-500.0,0.00022082,3]
[330575434,1719581512799,-168.20891447,0.00022082,3]
[330575435,1719581512810,-1201.82,0.00022082,3]
[330575436,1719581512820,-1421.31,0.00022082,3]
[330575437,1719581512831,-1542.67,0.00022082,3]
[330575438,1719581512841,-1294.19,0.00022082,3]
[330575439,1719581512850,-4444.52,0.00022082,3]
[330575440,1719581512860,-500.0,0.00022082,3]
[330575441,1719581512869,-1711.2,0.00022082,3]
[330575442,1719581512879,-1259.38,0.00022082,3]
[330575443,1719581512889,-500.0,0.00022082,3]
[330575444,1719581512899,-500.0,0.00022082,3]
[330575445,1719581512909,-1414.84,0.00022082,3]
[330575446,1719581512918,-500.0,0.00022082,3]
[330575447,1719581512928,-1220.0,0.00022082,3]
[330575448,1719581512938,-500.0,0.00022082,3]
[330575449,1719581512948,-3033.69,0.00022082,3]
[330575450,1719581512958,-585.45,0.00022082,3]
[330575451,1719581512967,-968.19,0.00022082,3]
[330575452,1719581512977,-3606.57,0.00022082,3]
[330575453,1719581512986,-5413.23,0.00022082,3]
[330575454,1719581512995,-500.0,0.00022082,3]
[330575455,1719581513004,-500.0,0.00022082,3]
[330575456,1719581513015,-500.0,0.00022082,3]
[330575457,1719581513024,-400.0,0.00022085,2]
[330575458,1719581513033,-252.344111,0.00022085,2]
[330575459,1719581513043,-786.475923,0.00022085,2]
[330575460,1719581513053,-5742.112373,0.00022085,2]
[330575461,1719581513062,-1051.535752,0.00022085,2]
[330575462,1719581513071,-305.456909,0.00022085,2]
[330575463,1719581513083,-2871.056187,0.00022085,2]
[330575464,1719581513095,-950.24588,0.00022085,2]
[330575465,1719581513105,-1568.26614724,0.00022091,2]
[330575466,1719581513115,-1485.33680268,0.00022091,2]
[330575467,1719581513125,-151.0,0.00022115,2]
[330575468,1719581513134,-500.0,0.00022136,3]
[330575469,1719581513144,-500.0,0.00022136,3]
[330575470,1719581513153,-500.0,0.00022136,3]
[330575471,1719581513163,-500.0,0.00022136,3]
[330575472,1719581513172,-500.0,0.00022136,3]
[330575473,1719581513181,-500.0,0.00022136,3]
[330575474,1719581513191,-548.61,0.00022136,3]
[330575475,1719581513200,-506.29759762,0.00022136,3]
[330575476,1719581513209,-783.65,0.00022136,3]
[330575477,1719581513219,-500.0,0.00022136,3]
[330575478,1719581513229,-850.9,0.00022136,3]
[330575479,1719581513238,-514.0,0.00022136,3]
[330575480,1719581513249,-253.76138084,0.00022136,3]
[330575481,1719581513259,-500.0,0.00022136,3]
[330575482,1719581513269,-699.06,0.00022136,3]
[330575483,1719581513278,-1048.4,0.00022136,3]
[330575484,1719581513287,-500.0,0.00022136,3]
[330575485,1719581513297,-1001.0,0.00022136,3]
[330575486,1719581513306,-1000.42,0.00022136,3]
[330575487,1719581513316,-891.89,0.00022136,3]
[330575488,1719581513326,-681.81,0.00022136,3]
[330575489,1719581513335,-500.0,0.00022136,3]
[330575490,1719581513344,-500.0,0.00022136,3]
[330575491,1719581513355,-500.0,0.00022136,3]
[330575492,1719581513364,-966.81,0.00022136,3]
[330575493,1719581513373,-500.0,0.00022136,3]
[330575494,1719581513382,-500.0,0.00022136,3]
[330575495,1719581513392,-525.77,0.00022136,3]
[330575496,1719581513401,-500.0,0.00022136,3]
[330575497,1719581513411,-1387.96,0.00022136,3]
[330575498,1719581513421,-500.0,0.00022136,3]
[330575499,1719581513434,-500.0,0.00022136,3]
[330575500,1719581513443,-666.31,0.00022136,3]
[330575501,1719581513452,-500.0,0.00022136,3]
[330575502,1719581513463,-1442.81,0.00022136,3]
[330575503,1719581513472,-1243.8,0.00022136,3]
[330575504,1719581513481,-682.07,0.00022136,3]
[330575505,1719581513490,-520.71,0.00022136,3]
[330575506,1719581513499,-1362.6,0.00022136,3]
[330575507,1719581513513,-500.0,0.00022136,3]
[330575508,1719581513643,-1234.87,0.00022136,3]
[330575509,1719581513654,-500.0,0.00022136,3]
[330575510,1719581513664,-500.0,0.00022136,3]
[330575511,1719581513674,-500.0,0.00022136,3]
[330575512,1719581513683,-1123.19,0.00022136,3]
[330575513,1719581513692,-500.0,0.00022136,3]
[330575514,1719581513701,-565.31,0.00022136,3]
[330575515,1719581513710,-500.0,0.00022136,3]
[330575516,1719581513720,-594.55,0.00022136,3]
[330575517,1719581513729,-500.0,0.00022136,3]
[330575518,1719581513740,-731.52,0.00022136,3]
[330575519,1719581513750,-643.77,0.00022136,3]
[330575520,1719581513759,-1699.71,0.00022136,3]
[330575521,1719581513769,-500.0,0.00022136,3]
[330575522,1719581513780,-723.52,0.00022136,3]
[330575523,1719581513789,-1373.99,0.00022136,3]
[330575524,1719581513800,-500.0,0.00022136,3]
[330575525,1719581513810,-875.02,0.00022136,3]
[330575526,1719581513819,-558.04,0.00022136,3]
[330575527,1719581513829,-772.68,0.00022136,3]
[330575528,1719581513839,-500.0,0.00022136,3]
[330575529,1719581513848,-500.0,0.00022136,3]
[330575530,1719581513858,-1704.22,0.00022136,3]
[330575531,1719581513867,-500.0,0.00022136,3]
[330575532,1719581513876,-500.0,0.00022136,3]
[330575533,1719581513886,-500.0,0.00022136,3]
[330575534,1719581513895,-971.16,0.00022136,3]
[330575535,1719581513905,-500.0,0.00022136,3]
[330575536,1719581513915,-1145.01,0.00022136,3]
[330575537,1719581513924,-500.0,0.00022136,3]
[330575538,1719581513934,-500.0,0.00022136,3]
[330575539,1719581513943,-500.0,0.00022136,3]
[330575540,1719581513953,-500.0,0.00022136,3]
[330575541,1719581513962,-500.0,0.00022136,3]
[330575542,1719581513972,-750.08,0.00022136,3]
[330575543,1719581513981,-639.6,0.00022136,3]
[330575544,1719581513991,-748.25,0.00022136,3]
[330575545,1719581514000,-500.0,0.00022136,3]
[330575546,1719581514009,-618.0,0.00022136,3]
[330575547,1719581514018,-905.23,0.00022136,3]
[330575548,1719581514028,-515.0,0.00022136,3]
[330575549,1719581514036,-666.21,0.00022136,3]
[330575550,1719581514046,-1407.05,0.00022136,3]
[330575551,1719581514055,-500.0,0.00022136,3]
[330575552,1719581514064,-500.0,0.00022136,3]
[330575553,1719581514073,-500.0,0.00022136,3]
[330575554,1719581514083,-769.12,0.00022136,3]
[330575555,1719581514092,-674.3,0.00022136,3]
[330575556,1719581514103,-500.0,0.00022136,3]
[330575557,1719581514112,-715.06,0.00022136,3]
[330575558,1719581514121,-500.0,0.00022136,3]
[330575559,1719581514131,-500.0,0.00022136,3]
[330575560,1719581514141,-1278.46,0.00022136,3]
[330575561,1719581514150,-500.0,0.00022136,3]
[330575562,1719581514159,-980.12,0.00022136,3]
[330575563,1719581514168,-500.0,0.00022136,3]
[330575564,1719581514177,-1184.68,0.00022136,3]
[330575565,1719581514187,-500.0,0.00022136,3]
[330575566,1719581514197,-843.12,0.00022136,3]
[330575567,1719581514206,-1239.44,0.00022136,3]
[330575568,1719581514215,-1206.36,0.00022136,3]
[330575569,1719581514224,-1609.18,0.00022136,3]
[330575570,1719581514234,-500.0,0.00022136,3]
[330575571,1719581514243,-500.0,0.00022136,3]
[330575572,1719581514252,-2934.42,0.00022136,3]
[330575573,1719581514261,-1088.64,0.00022136,3]
[330575574,1719581514271,-500.0,0.00022136,3]
[330575575,1719581514280,-500.0,0.00022136,3]
[330575576,1719581514290,-500.0,0.00022136,3]
[330575577,1719581514299,-500.0,0.00022136,3]
[330575578,1719581514308,-500.0,0.00022136,3]
[330575579,1719581514319,-500.0,0.00022136,3]
[330575580,1719581514329,-500.0,0.00022136,3]
[330575581,1719581514338,-1148.41,0.00022136,3]
[330575582,1719581514348,-921.29,0.00022136,3]
[330575583,1719581514357,-500.0,0.00022136,3]
[330575584,1719581514367,-500.0,0.00022136,3]
[330575585,1719581514376,-1294.54,0.00022136,3]
[330575586,1719581514385,-500.0,0.00022136,3]
[330575587,1719581514394,-500.0,0.00022136,3]
[330575588,1719581514404,-1623.02,0.00022136,3]
[330575589,1719581514413,-556.63,0.00022136,3]
[330575590,1719581514425,-500.0,0.00022136,3]
[330575591,1719581514439,-702.96,0.00022136,3]
[330575592,1719581514448,-921.0,0.00022136,3]
[330575593,1719581514459,-500.0,0.00022136,3]
[330575594,1719581514468,-786.23,0.00022136,3]
[330575595,1719581514477,-1040.32,0.00022136,3]
[330575596,1719581514487,-500.0,0.00022136,3]
[330575597,1719581514496,-517.36,0.00022136,3]
[330575598,1719581514506,-4299.14,0.00022136,3]
[330575599,1719581514515,-1890.61,0.00022136,3]
[330575600,1719581514525,-500.0,0.00022136,3]
[330575601,1719581514534,-500.0,0.00022136,3]
[330575602,1719581514543,-500.0,0.00022136,3]
[330575603,1719581514552,-500.0,0.00022136,3]
[330575604,1719581514562,-759.06,0.00022136,3]
[330575605,1719581514571,-500.0,0.00022136,3]
[330575606,1719581514581,-500.0,0.00022136,3]
[330575607,1719581514590,-500.0,0.00022136,3]
[330575608,1719581514600,-1746.61,0.00022136,3]
[330575609,1719581514609,-500.0,0.00022136,3]
[330575610,1719581514619,-500.0,0.00022136,3]
[330575611,1719581514628,-500.0,0.00022136,3]
[330575612,1719581514637,-676.81,0.00022136,3]
[330575613,1719581514646,-951.7,0.00022136,3]
[330575614,1719581514655,-500.0,0.00022136,3]
[330575615,1719581514665,-500.0,0.00022136,3]
[330575616,1719581514674,-500.0,0.00022136,3]
[330575617,1719581514683,-500.0,0.00022136,3]
[330575618,1719581514692,-500.0,0.00022136,3]
[330575619,1719581514702,-1193.49,0.00022136,3]
[330575620,1719581514712,-1219.38,0.00022136,3]
[330575621,1719581514721,-500.0,0.00022136,3]
[330575622,1719581514730,-500.0,0.00022136,3]
[330575623,1719581514739,-500.0,0.00022136,3]
[330575624,1719581514748,-500.0,0.00022136,3]
[330575625,1719581514757,-894.63,0.00022136,3]
[330575626,1719581514766,-630.5,0.00022136,3]
[330575627,1719581514775,-1006.35,0.00022136,3]
[330575628,1719581514784,-1286.65,0.00022136,3]
[330575629,1719581514794,-967.13,0.00022136,3]
[330575630,1719581514803,-208.18283011,0.00022136,3]
[330575631,1719581514812,-609.79,0.00022136,3]
[330575632,1719581514821,-500.0,0.00022136,3]
[330575633,1719581514831,-12161.34,0.00022136,3]
[330575634,1719581514840,-500.0,0.00022136,3]
[330575635,1719581514849,-500.0,0.00022136,3]
[330575636,1719581514858,-1109.45,0.00022136,3]
[330575637,1719581514867,-1021.69,0.00022136,3]
[330575638,1719581514876,-500.0,0.00022136,3]
[330575639,1719581514886,-1886.28,0.00022136,3]
[330575640,1719581514895,-600.16,0.00022136,3]
[330575641,1719581514904,-500.0,0.00022136,3]
[330575642,1719581514913,-864.42,0.00022136,3]
[330575643,1719581514923,-500.0,0.00022136,3]
[330575644,1719581514931,-500.0,0.00022136,3]
[330575645,1719581514941,-500.0,0.00022136,3]
[330575646,1719581514950,-1150.19,0.00022136,3]
[330575647,1719581514959,-809.83,0.00022136,3]
[330575648,1719581514968,-1789.65,0.00022136,3]
[330575649,1719581514977,-943.45,0.00022136,3]
[330575650,1719581514986,-2040.73,0.00022136,3]
[330575651,1719581514995,-915.47,0.00022136,3]
[330575652,1719581515006,-959.08,0.00022136,3]
[330575653,1719581515016,-588.4,0.00022136,3]
[330575654,1719581515025,-1564.89,0.00022136,3]
[330575655,1719581515034,-1107.4,0.00022136,3]
[330575656,1719581515043,-500.0,0.00022136,3]
[330575657,1719581515052,-749.67,0.00022136,3]
[330575658,1719581515061,-1209.21,0.00022136,3]
[330575659,1719581515071,-1028.85,0.00022136,3]
[330575660,1719581515082,-500.0,0.00022136,3]
[330575661,1719581515091,-565.35,0.00022136,3]
[330575662,1719581515104,-500.0,0.00022136,3]
[330575663,1719581515114,-550.95,0.00022136,3]
[330575664,1719581515126,-500.0,0.00022136,3]
[330575665,1719581515136,-528.27,0.00022136,3]
[330575666,1719581515146,-500.0,0.00022136,3]
[330575667,1719581515155,-811.57,0.00022136,3]
[330575668,1719581515164,-738.44,0.00022136,3]
[330575669,1719581515174,-1190.19,0.00022136,3]
[330575670,1719581515183,-1534.77,0.00022136,3]
[330575671,1719581515192,-500.0,0.00022136,3]
[330575672,1719581515201,-500.0,0.00022136,3]
[330575673,1719581515211,-500.0,0.00022136,3]
[330575674,1719581515220,-538.49,0.00022136,3]
[330575675,1719581515229,-953.75,0.00022136,3]
[330575676,1719581515238,-966.78,0.00022136,3]
[330575677,1719581515248,-500.0,0.00022136,3]
[330575678,1719581515256,-500.0,0.00022136,3]
[330575679,1719581515266,-500.0,0.00022136,3]
[330575680,1719581515274,-1240.95,0.00022136,3]
[330575681,1719581515284,-1394.69,0.00022136,3]
[330575682,1719581515293,-500.0,0.00022136,3]
[330575683,1719581515302,-500.0,0.00022136,3]
[330575684,1719581515311,-579.58,0.00022136,3]
[330575685,1719581515321,-500.0,0.00022136,3]
[330575686,1719581515333,-500.0,0.00022136,3]
[330575687,1719581515343,-1619.45,0.00022136,3]
[330575688,1719581515353,-1557.65,0.00022136,3]
[330575689,1719581515362,-500.0,0.00022136,3]
[330575690,1719581515371,-500.0,0.00022136,3]
[330575691,1719581515381,-500.0,0.00022136,3]
[330575692,1719581515391,-500.0,0.00022136,3]